[Event "Chinese League Division-A 2024"]
[Site "Fuling Chongqing"]
[Date "2024.06.27"]
[Round "2.8"]
[White "Ma, Qun"]
[Black "Xu, Minghui"]
[Result "1-0"]
[ECO "C92"]
[WhiteElo "2643"]
[BlackElo "2388"]
[Annotator "TA"]
[PlyCount "57"]
[EventDate "2024.06.28"]
[EventType "team-tourn"]
[EventCountry "CHN"]
[SourceTitle "playchess.com"]
[Source "ChessBase"]
[SourceQuality "1"]
[TimeControl "40/5400+30:1800+30"]

{[%evp 22,57,27,-10,18,0,39,13,12,12,12,4,11,17,14,0,0,0,0,0,23,22,37,14,17,2,47,27,55,68,71,45,109,133,252,14,619,616]} 1. e4 {[%emt 0:00:07]} e5 {[%emt 0:00:29]} 2. Nf3 {[%emt 0:00:11]} Nc6 {[%emt 0:00:05]} 3. Bb5 {[%emt 0:00:18]} a6 {[%emt 0:01:46]} 4. Ba4 {[%emt 0:00:09]} Nf6 {[%emt 0:00:08]} 5. O-O {[%emt 0:00:22]} Be7 {[%emt 0:00:35]} 6. Re1 {[%emt 0:00:26]} b5 {[%emt 0:00:33]} 7. Bb3 {[%emt 0:00:04]} d6 {[%emt 0:00:13]} 8. c3 {[%emt 0:00:29]} O-O {[%emt 0:00:09]} 9. h3 {[%emt 0:00:23]} Bb7 {[%emt 0:02:02]} 10. d4 {[%emt 0:00:12]} Re8 {[%emt 0:00:15]} 11. Nbd2 {[%emt 0:00:36]} Bf8 {[%emt 0:01:00]} 12. a4 {[%emt 0:00:10]} Na5 {[%emt 0:15:37]} 13. Bc2 {[%emt 0:01:33]} c5 {[%emt 0:07:41]} 14. b3 {[%emt 0:13:49]} cxd4 {[%emt 0:15:09] The position is equal.} 15. cxd4 {[%emt 0:00:11]} d5 {[%emt 0:00:45]} 16. axb5 {[%emt 0:23:20]} (16. exd5 {is more complex.} exd4 17. axb5 axb5 18. Bb2) 16... axb5 {[%emt 0:07:57]} 17. exd5 {[%emt 0:08:33]} exd4 {[%emt 0:02:16]} 18. Rxe8 {[%emt 0:03:33]} Qxe8 {[%emt 0:00:52]} 19. Bb2 {[%emt 0:00:52]} Nxd5 {[%emt 0:06:30]} 20. Nxd4 {[%emt 0:01:03][%cal Bf3d4,Bd4f5,Bf5g3,Bg3h5][%mdl 32]} Nc6 {[%emt 0:20:22] Strongly threatening ...Nxd4.} 21. Rxa8 {[%emt 0:08:51]} Bxa8 {[%emt 0:00:05]} 22. Nf5 {[%emt 0:00:07][%cal Of5h6] Hoping for Nh6+!} f6 {[%emt 0:09:32]} 23. Qg4 {[%emt 0:10:38] aiming for Nh6+.} Kh8 {[%emt 0:00:10]} 24. Nf3 {[%emt 0:01:33]} Nd8 {[%emt 0:06:41]} 25. Qh4 $40 {[%emt 0:11:24][%cal Of5g7][%mdl 128] White wants to mate with Nxg7! White is up to no good.} Kg8 {[%emt 0:00:45]} 26. Ng3 {[%emt 0:07:54] White has more active pieces.} h6 {[%emt 0:00:44]} (26... g6 $1 $14) 27. Qg4 $16 {[%emt 0:00:39]} Nb4 {[%emt 0:00:51] [#]} (27... Qe6 $16) 28. Be4 $2 {[%emt 0:04:46]} (28. Nh5 $1 $18 {[%cal Rh5f6]} Kh8 (28... Nxc2 $2 {loses.} 29. Nxf6+ Kf7 30. Nxe8 $18) 29. Nxf6 Bxf3 30. Qxb4 (30. Nxe8 $2 Bxg4 31. Be4 Be2 $19) 30... Bxb4 (30... gxf6 $2 {is the wrong capture.} 31. Qf4 $18) 31. Nxe8) 28... Bd5 $2 {[%emt 0:00:40][%mdl 8192] [#]} (28... Bxe4 $11 29. Nxe4 Kh8) 29. Nh5 $1 {[%emt 0:01:14] Weighted Error Value: White=0.32/Black=0.55.  Loses game:     	---       	Black=1      Missed win:     	White=1     	---        Mistake:       	---       	Black=2      Inaccurate:     	White=2     	Black=3      OK:         	White=3     	Black=3      Best:        	White=1     	---        Strong:       	White=1     	---} 1-0

[Event "Chinese League Division-A 2024"]
[Site "Fuling Chongqing"]
[Date "2024.06.27"]
[Round "2.9"]
[White "Ding, Yixin"]
[Black "Zhai, Mo"]
[Result "1/2-1/2"]
[ECO "C47"]
[WhiteElo "2397"]
[BlackElo "2348"]
[Annotator "RC"]
[PlyCount "68"]
[EventDate "2024.06.28"]
[EventType "team-tourn"]
[EventCountry "CHN"]
[SourceTitle "playchess.com"]
[Source "ChessBase"]
[SourceQuality "1"]
[TimeControl "40/5400+30:1800+30"]

1. e4 {[%emt 0:00:04]} e5 {[%emt 0:00:16]} 2. Nf3 {[%emt 0:00:08]} Nc6 {[%emt 0:00:09]} 3. Nc3 {[%emt 0:00:15]} Nf6 {[%emt 0:00:33]} 4. d4 {[%emt 0:00:27]} exd4 {[%emt 0:00:36]} 5. Nxd4 {[%emt 0:00:04]} Bb4 {[%emt 0:00:16]} 6. Nxc6 {[%emt 0:00:18]} bxc6 {[%emt 0:00:09]} 7. Bd3 {[%emt 0:00:08]} d5 {[%emt 0:01:47]} 8. exd5 {[%emt 0:00:17]} O-O {[%emt 0:00:37]} 9. O-O {[%emt 0:00:38]} cxd5 {[%emt 0:00:21]} 10. Qf3 {[%emt 0:00:53]} c6 {[%emt 0:01:09]} 11. Bg5 {[%emt 0:00:56]} Bd6 {[%emt 0:01:51]} 12. Rae1 {[%emt 0:03:15]} Rb8 {[%emt 0:01:26]} 13. Nd1 {[%emt 0:02:14]} h6 {[%emt 0:01:37]} 14. Bxf6 {[%emt 0:00:27]} Qxf6 {[%emt 0:00:08]} 15. Qxf6 {[%emt 0:00:06]} gxf6 {[%emt 0:00:04]} 16. b3 {[%emt 0:00:59]} f5 {[%emt 0:04:28]} 17. Ne3 {[%emt 0:03:55]} f4 {[%emt 0:00:14]} 18. Nf5 {[%emt 0:00:26]} Bxf5 {[%emt 0:00:13]} 19. Bxf5 {[%emt 0:00:07]} Kg7 {[%emt 0:00:23]} 20. g3 {[%emt 0:06:46]} Kf6 {[%emt 0:02:03]} 21. Bd3 {[%emt 0:00:09]} h5 {[%emt 0:00:50]} 22. Kg2 {[%emt 0:01:41]} Rh8 {[%emt 0:01:26]} 23. Kf3 {[%emt 0:02:16]} fxg3 {[%emt 0:01:06]} 24. hxg3 {[%emt 0:00:07]} h4 {[%emt 0:01:53]} 25. Rh1 {[%emt 0:01:22]} hxg3 {[%emt 0:00:48]} 26. fxg3 {[%emt 0:00:07]} a5 {[%emt 0:02:58]} 27. a4 {[%emt 0:02:20]} Bb4 {[%emt 0:02:55]} 28. Ref1 {[%emt 0:01:14]} Ke5 {[%emt 0:02:37]} 29. g4 {[%emt 0:01:52]} f6 {[%emt 0:03:58]} 30. Rxh8 {[%emt 0:00:31]} Rxh8 {[%emt 0:00:06]} 31. Kg2 {[%emt 0:00:32]} Rg8 {[%emt 0:00:54]} 32. Kf3 {[%emt 0:00:41]} Rh8 {[%emt 0:00:16]} 33. Kg2 {[%emt 0:00:05]} Rg8 {[%emt 0:00:38]} 34. Kf3 {[%emt 0:00:07]} Rh8 {[%emt 0:00:34]} 1/2-1/2

[Event "Chinese League Division-A 2024"]
[Site "Fuling Chongqing"]
[Date "2024.06.27"]
[Round "2.10"]
[White "Lu, Miaoyi"]
[Black "Zhu, Jiner"]
[Result "0-1"]
[ECO "B52"]
[WhiteElo "2449"]
[BlackElo "2476"]
[Annotator "RC"]
[PlyCount "180"]
[EventDate "2024.06.28"]
[EventType "team-tourn"]
[EventCountry "CHN"]
[SourceTitle "playchess.com"]
[Source "ChessBase"]
[SourceQuality "1"]
[TimeControl "40/5400+30:1800+30"]

1. e4 {[%emt 0:00:01]} c5 {[%emt 0:00:11]} 2. Nf3 {[%emt 0:00:02]} d6 {[%emt 0:00:11]} 3. Bb5+ {[%emt 0:00:03]} Bd7 {[%emt 0:00:08]} 4. c4 {[%emt 0:00:04]} Nf6 {[%emt 0:01:03]} 5. Nc3 {[%emt 0:00:02]} g6 {[%emt 0:00:10]} 6. d4 {[%emt 0:00:33]} cxd4 {[%emt 0:00:09]} 7. Nxd4 {[%emt 0:00:01]} Bg7 {[%emt 0:00:12]} 8. Be3 {[%emt 0:00:30]} a6 {[%emt 0:03:12]} 9. Bxd7+ {[%emt 0:00:02]} Nbxd7 {[%emt 0:00:09]} 10. Rc1 {[%emt 0:13:38]} O-O {[%emt 0:01:30]} 11. O-O {[%emt 0:00:48]} Rc8 {[%emt 0:08:28]} 12. b3 {[%emt 0:02:55]} Qa5 {[%emt 0:00:38]} 13. a4 {[%emt 0:07:01]} e6 {[%emt 0:03:32]} 14. Nde2 {[%emt 0:02:39]} Rfd8 {[%emt 0:10:48]} 15. h3 {[%emt 0:05:56]} Nc5 {[%emt 0:18:31]} 16. f3 {[%emt 0:09:34]} Nfd7 {[%emt 0:02:28]} 17. Qc2 {[%emt 0:02:03]} Ne5 {[%emt 0:03:32]} 18. Rfd1 {[%emt 0:05:41]} Nc6 {[%emt 0:02:21]} 19. Rb1 {[%emt 0:00:14]} Nb4 {[%emt 0:05:57]} 20. Qd2 {[%emt 0:00:20]} Qc7 {[%emt 0:00:41]} 21. Bg5 {[%emt 0:06:01]} Rd7 {[%emt 0:00:28]} 22. h4 {[%emt 0:02:21]} h5 {[%emt 0:05:01]} 23. Na2 {[%emt 0:02:09]} Nxa2 {[%emt 0:01:20]} 24. Qxa2 {[%emt 0:00:02]} a5 {[%emt 0:00:12]} 25. Kh1 {[%emt 0:08:05]} Re8 {[%emt 0:02:20]} 26. Qd2 {[%emt 0:03:18]} Qb6 {[%emt 0:04:03]} 27. Be3 {[%emt 0:02:05]} Bf6 {[%emt 0:01:33]} 28. Bf2 {[%emt 0:02:05]} Red8 {[%emt 0:02:18]} 29. Qe3 {[%emt 0:01:24]} Qc7 {[%emt 0:02:03]} 30. Bg3 {[%emt 0:08:49]} Qb6 {[%emt 0:01:47]} 31. Nc3 {[%emt 0:01:24]} Nxa4 {[%emt 0:02:26]} 32. Qxb6 {[%emt 0:00:03]} Nxb6 {[%emt 0:00:06]} 33. Nb5 {[%emt 0:00:04]} Nc8 {[%emt 0:05:06]} 34. Rd3 {[%emt 0:00:49]} Kf8 {[%emt 0:00:34]} 35. Rbd1 {[%emt 0:05:38]} Ke7 {[%emt 0:00:07]} 36. Kg1 {[%emt 0:01:12]} b6 {[%emt 0:01:37]} 37. Kf1 {[%emt 0:01:17]} Bg7 {[%emt 0:03:57]} 38. Ke2 {[%emt 0:02:34]} f5 {[%emt 0:00:11]} 39. Bf4 {[%emt 0:03:04]} Bf6 {[%emt 0:00:30]} 40. g3 {[%emt 0:00:00]} e5 {[%emt 0:00:00]} 41. Bc1 {[%emt 0:07:00]} Ke6 {[%emt 0:03:52]} 42. Nc3 {[%emt 0:03:17]} Rf8 {[%emt 0:02:27]} 43. Nd5 {[%emt 0:06:33]} Bd8 {[%emt 0:00:28]} 44. Be3 {[%emt 0:04:29]} Rb7 {[%emt 0:00:46]} 45. Nc3 {[%emt 0:02:13]} f4 {[%emt 0:10:54]} 46. gxf4 {[%emt 0:00:29]} Bxh4 {[%emt 0:00:19]} 47. f5+ {[%emt 0:02:56]} gxf5 {[%emt 0:00:11]} 48. Rh1 {[%emt 0:00:03]} Bd8 {[%emt 0:03:57]} 49. Rxh5 {[%emt 0:00:05]} Rbf7 {[%emt 0:01:32]} 50. Nd5 {[%emt 0:03:46]} fxe4 {[%emt 0:04:57]} 51. fxe4 {[%emt 0:00:02]} Kd7 {[%emt 0:00:34]} 52. Rh6 {[%emt 0:00:53]} Kc6 {[%emt 0:01:02]} 53. b4 {[%emt 0:05:27]} Rg8 {[%emt 0:00:16]} 54. bxa5 {[%emt 0:01:29]} bxa5 {[%emt 0:02:45]} 55. c5 {[%emt 0:03:17]} Rg2+ {[%emt 0:05:57]} 56. Ke1 {[%emt 0:00:01]} a4 {[%emt 0:01:58]} 57. Rh8 {[%emt 0:00:38]} Ba5+ {[%emt 0:01:05]} 58. Bd2 {[%emt 0:00:37]} Rxd2 {[%emt 0:01:49]} 59. Rxd2 {[%emt 0:00:08]} a3 {[%emt 0:01:24]} 60. Rh3 {[%emt 0:01:59]} a2 {[%emt 0:01:33]} 61. Ra3 {[%emt 0:00:02]} Bxd2+ {[%emt 0:00:06]} 62. Kxd2 {[%emt 0:00:03]} Kxc5 {[%emt 0:00:23]} 63. Nc3 {[%emt 0:00:36]} Nb6 {[%emt 0:02:30]} 64. Rxa2 {[%emt 0:00:34]} Nc4+ {[%emt 0:00:16]} 65. Ke2 {[%emt 0:00:44]} Rh7 {[%emt 0:00:09]} 66. Rc2 {[%emt 0:01:05]} Rh2+ {[%emt 0:00:08]} 67. Kd3 {[%emt 0:00:05]} Rh3+ {[%emt 0:00:17]} 68. Ke2 {[%emt 0:00:03]} Rh2+ {[%emt 0:01:37]} 69. Kd3 {[%emt 0:00:02]} Rxc2 {[%emt 0:00:05]} 70. Kxc2 {[%emt 0:00:04]} Kd4 {[%emt 0:00:02]} 71. Nb5+ {[%emt 0:01:10]} Kxe4 {[%emt 0:00:05]} 72. Nc3+ {[%emt 0:00:41]} Kd4 {[%emt 0:00:07]} 73. Ne2+ {[%emt 0:00:21]} Kc5 {[%emt 0:00:08]} 74. Kd3 {[%emt 0:00:13]} d5 {[%emt 0:00:13]} 75. Nc3 {[%emt 0:00:24]} Nb6 {[%emt 0:01:04]} 76. Ne2 {[%emt 0:00:19]} Kd6 {[%emt 0:00:40]} 77. Ke3 {[%emt 0:01:11]} Nd7 {[%emt 0:00:38]} 78. Kd3 {[%emt 0:00:37]} Nc5+ {[%emt 0:00:05]} 79. Kc3 {[%emt 0:00:18]} e4 {[%emt 0:00:21]} 80. Nd4 {[%emt 0:00:52]} Ne6 {[%emt 0:00:16]} 81. Nb3 {[%emt 0:00:38]} Ke5 {[%emt 0:00:08]} 82. Kd2 {[%emt 0:00:55]} d4 {[%emt 0:00:07]} 83. Ke2 {[%emt 0:00:21]} Nf4+ {[%emt 0:00:07]} 84. Kf2 {[%emt 0:00:04]} Kd5 {[%emt 0:01:56]} 85. Kg3 {[%emt 0:00:03]} Ne6 {[%emt 0:00:14]} 86. Na5 {[%emt 0:00:45]} d3 {[%emt 0:00:36]} 87. Kf2 {[%emt 0:00:10]} Kd4 {[%emt 0:00:07]} 88. Nb7 {[%emt 0:00:54]} e3+ {[%emt 0:00:22]} 89. Kf3 {[%emt 0:00:07]} d2 {[%emt 0:00:44]} 90. Ke2 {[%emt 0:00:03]} Nf4+ {[%emt 0:00:18]} 0-1

[Event "Chinese League Division-A 2024"]
[Site "Fuling Chongqing"]
[Date "2024.06.27"]
[Round "2.11"]
[White "Chen, Qi b"]
[Black "Wang, Hao"]
[Result "1/2-1/2"]
[ECO "B31"]
[WhiteElo "2481"]
[BlackElo "2702"]
[Annotator "TA"]
[PlyCount "61"]
[EventDate "2024.06.28"]
[EventType "team-tourn"]
[EventCountry "CHN"]
[SourceTitle "playchess.com"]
[Source "ChessBase"]
[SourceQuality "1"]
[TimeControl "40/5400+30:1800+30"]

{[%evp 18,61,9,0,12,3,2,12,0,-34,0,0,0,-26,-20,-25,-22,-62,-48,-45,-28,-70,-53,-45,-48,-51,-75,-50,0,0,0,0,37,0,50,0,36,25,59,66,69,68,89,52,55,48]} 1. e4 {[%emt 0:00:02]} c5 {[%emt 0:00:26]} 2. Nf3 {[%emt 0:00:06]} Nc6 {[%emt 0:00:22]} 3. Bb5 {[%emt 0:00:38]} g6 {[%emt 0:00:23]} 4. O-O {[%emt 0:00:20]} Bg7 {[%emt 0:00:05]} 5. d3 {[%emt 0:00:35]} Nf6 {[%emt 0:00:09][%cal Bg8f6,Bf6d5,Bd5c7,Bc7e6][%mdl 32]} 6. Bxc6 {[%emt 0:00:11]} bxc6 {[%emt 0:01:09]} 7. e5 {[%emt 0:00:14]} Nd5 {[%emt 0:00:12]} 8. Re1 {[%emt 0:01:43]} O-O {[%emt 0:00:57]} 9. Nbd2 {[%emt 0:00:16]} d6 {[%emt 0:04:20]} 10. h3 {[%emt 0:04:12]} Nc7 {[%emt 0:09:02]} 11. Nc4 {[%emt 0:04:48]} Ne6 {[%emt 0:02:28]} 12. Bd2 {[%emt 0:17:42]} a5 {[%emt 0:17:02] The position is equal.} 13. a4 {[%emt 0:05:49]} f6 {[%emt 0:00:08]} 14. exd6 {[%emt 0:03:16]} exd6 {[%emt 0:00:06]} 15. c3 {[%emt 0:07:22]} Re8 {[%emt 0:08:37]} 16. Qc2 {[%emt 0:07:26]} d5 {[%emt 0:05:25]} 17. Na3 {[%emt 0:00:38][%cal Bc4a3,Ba3b1,Bb1d2,Bd2e4][%mdl 32]} Bf8 {[%emt 0:00:25][%cal Bg7f8,Bf8d6,Bd6c7][%mdl 32]} 18. c4 {[%emt 0:04:45]} d4 {[%emt 0:01:13]} 19. Re2 {[%emt 0:00:47]} Ra7 {[%emt 0:04:14]} 20. Rae1 {[%emt 0:00:41]} Bd6 {[%emt 0:00:11]} 21. Nb1 {[%emt 0:02:35]} g5 {[%emt 0:07:15]} 22. Bc1 {[%emt 0:01:31]} Rae7 {[%emt 0:08:43]} (22... Rg7 $15) 23. Nbd2 $11 {[%emt 0:01:10]} Bc7 {[%emt 0:00:08]} 24. Ne4 {[%emt 0:01:59]} Kg7 {[%emt 0:01:08]} 25. Ng3 {[%emt 0:13:23]} Kg6 {[%emt 0:03:25] Prevents Nf5} (25... Nf8 $11) 26. Kf1 {[%emt 0:06:09]} ({Better is} 26. Qd1 $1 $14) 26... h6 {[%emt 0:02:03][%cal Bh7h6,Bh6h5][%mdl 32]} 27. Qd1 {[%emt 0:01:52][%cal Og3f5]} Bxg3 {[%emt 0:10:25]} 28. fxg3 {[%emt 0:00:05]} h5 {[%emt 0:00:30]} 29. Kf2 {[%emt 0:02:24] White is more active.} Qc7 {[%emt 0:00:24]} 30. Re4 {[%emt 0:02:10]} Ng7 {[%emt 0:02:52]} 31. Rxe7 {[%emt 0:00:29] Weighted Error Value: White=0.16 (very precise) /Black=0.17 (very precise) .  Mistake:       	White=1     	Black=2      Inaccurate:     	White=6     	Black=4      OK:         	White=11    	Black=7      Best:        	White=1     	---} 1/2-1/2

[Event "Chinese League Division-A 2024"]
[Site "Fuling Chongqing"]
[Date "2024.06.27"]
[Round "2.12"]
[White "Zhao, Jun"]
[Black "Xu, Jun"]
[Result "1/2-1/2"]
[ECO "C77"]
[WhiteElo "2538"]
[BlackElo "2471"]
[Annotator "TA"]
[PlyCount "77"]
[EventDate "2024.06.28"]
[EventType "team-tourn"]
[EventCountry "CHN"]
[SourceTitle "playchess.com"]
[Source "ChessBase"]
[SourceQuality "1"]
[TimeControl "40/5400+30:1800+30"]

{[%evp 12,77,5,10,22,16,20,13,25,0,5,0,0,0,0,0,9,0,9,0,0,-18,0,-10,14,-13,-14,-9,-16,-10,0,0,0,0,0,0,0,0,0,0,0,0,0,0,0,0,0,0,0,0,0,0,0,0,0,0,0,-47,0,0,0,-68,-68,-68,-68,-68,-68,-68]} 1. e4 {[%emt 0:00:07]} e5 {[%emt 0:00:09]} 2. Nf3 {[%emt 0:00:11]} Nc6 {[%emt 0:00:02]} 3. Bb5 {[%emt 0:04:56]} a6 {[%emt 0:00:10]} 4. Ba4 {[%emt 0:00:03]} Nf6 {[%emt 0:00:08]} 5. d3 {[%emt 0:00:11]} b5 {[%emt 0:00:14]} 6. Bb3 {[%emt 0:00:07]} Bc5 {[%emt 0:00:04]} 7. Nc3 {[%emt 0:05:42]} h6 {[%emt 0:04:15]} 8. Nd5 {[%emt 0:03:59]} d6 {[%emt 0:06:35]} 9. c3 {[%emt 0:00:12]} Rb8 {[%emt 0:04:24] The position is equal.} 10. O-O {[%emt 0:25:38]} O-O {[%emt 0:00:49]} 11. Be3 {[%emt 0:03:57]} Bxe3 {[%emt 0:05:16]} 12. Nxf6+ {[%emt 0:01:31]} Qxf6 {[%emt 0:00:10]} 13. fxe3 {[%emt 0:00:03][%cal Of3d4] [#] Threatens to win with Nd4!} Qe7 {[%emt 0:00:20]} 14. Qe1 {[%emt 0:00:44]} Na5 {[%emt 0:01:56]} 15. Bc2 {[%emt 0:00:54]} c5 {[%emt 0:00:42]} 16. b4 {[%emt 0:03:44]} Nc6 {[%emt 0:03:36]} 17. Bb3 {[%emt 0:00:13]} Be6 {[%emt 0:02:16]} 18. Nh4 {[%emt 0:13:44]} cxb4 {[%emt 0:11:12]} 19. cxb4 {[%emt 0:00:50]} Qd7 {[%emt 0:00:33]} 20. Bxe6 {[%emt 0:12:11]} fxe6 {[%emt 0:06:48]} 21. Qc3 {[%emt 0:00:05]} Rxf1+ {[%emt 0:07:04]} 22. Rxf1 {[%emt 0:00:04]} Kh7 {[%emt 0:00:18]} 23. Nf3 {[%emt 0:04:46]} Rc8 {[%emt 0:00:26][%cal Oc6d4]} 24. Rc1 {[%emt 0:03:13]} Ne7 {[%emt 0:01:55]} 25. Qb2 {[%emt 0:00:15]} Rxc1+ {[%emt 0:01:19]} 26. Qxc1 {[%emt 0:00:04]} Qc6 {[%emt 0:01:06]} 27. Qxc6 {[%emt 0:00:41]} Nxc6 $11 {[%emt 0:00:07][%mdl 4096] Endgame. KN-KN} 28. a3 {[%emt 0:00:02]} Kg6 {[%emt 0:03:36]} 29. Kf2 {[%emt 0:00:15]} Kf6 {[%emt 0:00:41]} 30. Ke2 {[%emt 0:01:45]} d5 {[%emt 0:01:36]} 31. Kd2 {[%emt 0:01:27]} Ke7 {[%emt 0:01:05]} 32. Kc2 {[%emt 0:01:39]} Kd6 {[%emt 0:02:01]} 33. Kd2 {[%emt 0:00:29]} a5 {[%emt 0:02:43]} 34. Kc3 {[%emt 0:08:46]} (34. bxa5 $11 Nxa5 (34... dxe4 35. dxe4 Nxa5 36. Kc3 $11) 35. exd5 exd5 36. Kc3) 34... axb4+ {[%emt 0:01:57]} (34... dxe4 $15 35. dxe4 a4) 35. axb4 {[%emt 0:00:04]} g5 {[%emt 0:07:57]} 36. d4 {[%emt 0:02:04]} (36. g4 $11) 36... dxe4 $15 {[%emt 0:02:28] Black is slightly better.} 37. Nxe5 {[%emt 0:00:04]} Nxe5 {[%emt 0:00:14]} 38. dxe5+ {[%emt 0:00:05]} Kxe5 {[%emt 0:00:07]} 39. g4 {[%emt 0:00:04] Weighted Error Value: White=0.11 (very precise) /Black=0.05 (flawless) .  Mistake:       	White=2     	Black=1      Inaccurate:     	White=1     	---        OK:         	White=12    	Black=12     Best:        	---       	Black=1} 1/2-1/2

[Event "Chinese League Division-A 2024"]
[Site "Fuling Chongqing"]
[Date "2024.06.27"]
[Round "2.13"]
[White "Lin, Chen"]
[Black "Pang, Tao"]
[Result "1/2-1/2"]
[ECO "C01"]
[WhiteElo "2484"]
[BlackElo "2495"]
[Annotator "TA"]
[PlyCount "63"]
[EventDate "2024.06.28"]
[EventType "team-tourn"]
[EventCountry "CHN"]
[SourceTitle "playchess.com"]
[Source "ChessBase"]
[SourceQuality "1"]
[TimeControl "40/5400+30:1800+30"]

{[%evp 9,63,7,12,14,11,0,0,5,0,0,0,0,0,0,12,19,0,0,0,0,0,0,7,0,0,-7,0,0,0,-21,-14,-15,-6,-22,0,0,0,0,0,0,0,-46,-46,-46,-46,-55,-51,-51,-51,-38,-38,-63,-38,-38,-24,-45]} 1. e4 {[%emt 0:00:05]} e6 {[%emt 0:00:06]} 2. d4 {[%emt 0:00:52]} d5 {[%emt 0:00:09]} 3. exd5 {[%emt 0:00:44]} exd5 {[%emt 0:00:06]} 4. Nf3 {[%emt 0:00:05]} Nc6 {[%emt 0:01:19][%cal Bb8c6,Bc6b4,Bb4d3][%mdl 32]} 5. h3 {[%emt 0:00:05]} Nf6 {[%emt 0:03:51]} 6. Bd3 {[%emt 0:00:36]} Nb4 {[%emt 0:04:12]} 7. O-O {[%emt 0:00:57]} Nxd3 {[%emt 0:00:23]} 8. Qxd3 {[%emt 0:00:07] The position is equal.} Be7 {[%emt 0:02:03]} 9. Bg5 {[%emt 0:04:06]} O-O {[%emt 0:01:31]} 10. Nbd2 {[%emt 0:00:08]} h6 {[%emt 0:10:27]} 11. Bh4 {[%emt 0:01:42]} Ne4 {[%emt 0:06:21]} 12. Bxe7 {[%emt 0:14:48]} Qxe7 {[%emt 0:00:04]} 13. Rfe1 {[%emt 0:00:06]} Bf5 {[%emt 0:02:27]} 14. Qb3 {[%emt 0:01:21]} Qd6 {[%emt 0:02:24]} 15. Rad1 {[%emt 0:00:42]} Rfe8 {[%emt 0:07:49]} 16. Nxe4 {[%emt 0:02:23]} Bxe4 {[%emt 0:00:35]} 17. Nd2 {[%emt 0:02:45][%cal Od2e4]} b6 {[%emt 0:02:58]} 18. Nxe4 {[%emt 0:02:22]} dxe4 {[%emt 0:00:59]} 19. c3 {[%emt 0:10:11]} Re7 {[%emt 0:01:37]} 20. Re3 {[%emt 0:01:26]} Rae8 {[%emt 0:00:37]} 21. Rde1 {[%emt 0:00:08]} Kh8 {[%emt 0:00:42]} 22. Qb5 {[%emt 0:04:15]} c6 {[%emt 0:00:30]} 23. Qh5 {[%emt 0:00:08]} Qd5 {[%emt 0:00:50]} 24. Qxd5 {[%emt 0:00:31]} cxd5 $11 {[%emt 0:00:02][%mdl 4096] Endgame. KRR-KRR} 25. f4 {[%emt 0:06:01]} (25. g4 $11) 25... f5 $15 {[%emt 0:01:18]} 26. Rg3 {[%emt 0:01:59]} Re6 {[%emt 0:03:31]} 27. Kf2 {[%emt 0:01:32]} Kg8 {[%emt 0:00:13]} 28. a4 {[%emt 0:00:42]} Kf7 {[%emt 0:00:21]} 29. h4 {[%emt 0:00:10]} h5 {[%emt 0:02:44]} 30. Ke3 {[%emt 0:00:09]} Rc8 {[%emt 0:00:58]} 31. Kd2 {[%emt 0:00:24]} a6 {[%emt 0:03:44]} 32. Ra1 {[%emt 0:00:23] Weighted Error Value: White=0.04 (flawless) /Black=0.04 (flawless) .  Mistake:       	White=1     	---        OK:         	White=10    	Black=8} 1/2-1/2

[Event "Chinese League Division-A 2024"]
[Site "Fuling Chongqing"]
[Date "2024.06.27"]
[Round "2.14"]
[White "Song, Yuxin"]
[Black "Guo, Qi"]
[Result "1/2-1/2"]
[ECO "C28"]
[WhiteElo "2383"]
[BlackElo "2362"]
[Annotator "RC"]
[PlyCount "45"]
[EventDate "2024.06.28"]
[EventType "team-tourn"]
[EventCountry "CHN"]
[SourceTitle "playchess.com"]
[Source "ChessBase"]
[SourceQuality "1"]
[TimeControl "40/5400+30:1800+30"]

1. e4 {[%emt 0:00:11]} e5 {[%emt 0:00:12]} 2. Nc3 {[%emt 0:01:07]} Nf6 {[%emt 0:01:41]} 3. Bc4 {[%emt 0:01:40]} Nc6 {[%emt 0:01:27]} 4. d3 {[%emt 0:03:14]} Na5 {[%emt 0:00:36]} 5. Bb3 {[%emt 0:02:51]} Nxb3 {[%emt 0:04:43]} 6. axb3 {[%emt 0:00:55]} d5 {[%emt 0:01:32]} 7. Nf3 {[%emt 0:20:16]} dxe4 {[%emt 0:03:58]} 8. Nxe5 {[%emt 0:01:40]} exd3 {[%emt 0:01:41]} 9. O-O {[%emt 0:03:11]} Be7 {[%emt 0:07:34]} 10. Nxd3 {[%emt 0:02:30]} Bg4 {[%emt 0:03:04]} 11. Qe1 {[%emt 0:02:26]} O-O {[%emt 0:00:23]} 12. h3 {[%emt 0:06:20]} Bf5 {[%emt 0:01:25]} 13. Qe3 {[%emt 0:00:28]} Bxd3 {[%emt 0:03:55]} 14. Rd1 {[%emt 0:00:35]} Re8 {[%emt 0:00:36]} 15. Qxd3 {[%emt 0:00:23]} Qxd3 {[%emt 0:00:10]} 16. Rxd3 {[%emt 0:00:10]} a6 {[%emt 0:00:13]} 17. Bf4 {[%emt 0:00:40]} c6 {[%emt 0:00:14]} 18. Bc7 {[%emt 0:00:45]} Bd8 {[%emt 0:01:51]} 19. Bd6 {[%emt 0:00:35]} Be7 {[%emt 0:02:01]} 20. Bc7 {[%emt 0:00:27]} Bd8 {[%emt 0:00:10]} 21. Bd6 {[%emt 0:00:27]} Be7 {[%emt 0:00:08]} 22. Bc7 {[%emt 0:00:31]} Bd8 {[%emt 0:00:28]} 23. Bd6 {[%emt 0:00:22]} 1/2-1/2